[Event "MČR družstev mladších žáků 2024"]
[Site "Harrachov, Czech Republic"]
[Date "2024.06.15"]
[Round "3.20"]
[White "Zelenka Tomas"]
[Black "Tykalova Barbora"]
[Result "0-1"]
[TimeControl "25+10"]
[WhiteFideId "23750200"]
[BlackFideId "23750898"]
[WhiteElo "1255"]
[BlackElo "1284"]

1. e4 {[%clk 00:25:18]} {[%emt 00:00:02]} d5 {[%clk 00:25:16]} {[%emt
00:00:04]} 2. exd5 {[%clk 00:25:24]} {[%emt 00:00:04]} Qxd5 {[%clk 00:25:21]}
{[%emt 00:00:05]} 3. Nc3 {[%clk 00:25:31]} {[%emt 00:00:03]} Qd6 {[%clk
00:25:22]} {[%emt 00:00:10]} 4. d4 {[%clk 00:25:26]} {[%emt 00:00:14]} Nf6
{[%clk 00:25:23]} {[%emt 00:00:09]} 5. Nf3 {[%clk 00:25:12]} {[%emt 00:00:23]}
Bf5 {[%clk 00:25:16]} {[%emt 00:00:18]} 6. Bc4 {[%clk 00:25:00]} {[%emt
00:00:21]} e6 {[%clk 00:25:15]} {[%emt 00:00:12]} 7. O-O {[%clk 00:24:26]}
{[%emt 00:00:44]} c6 {[%clk 00:24:39]} {[%emt 00:00:46]} 8. Re1 {[%clk
00:23:10]} {[%emt 00:01:25]} Be7 {[%clk 00:24:03]} {[%emt 00:00:47]} 9. Be3
{[%clk 00:21:08]} {[%emt 00:02:10]} Nbd7 {[%clk 00:23:16]} {[%emt 00:00:59]} 10.
h3 {[%clk 00:19:51]} {[%emt 00:01:26]} O-O {[%clk 00:22:32]} {[%emt 00:00:54]}
11. Qd2 {[%clk 00:18:50]} {[%emt 00:01:11]} Qb4 {[%clk 00:20:05]} {[%emt
00:02:38]} 12. Bb3 {[%clk 00:17:32]} {[%emt 00:01:27]} a5 {[%clk 00:18:39]}
{[%emt 00:01:37]} 13. Rad1 {[%clk 00:16:10]} {[%emt 00:01:32]} a4 {[%clk
00:18:12]} {[%emt 00:00:37]} 14. a3 {[%clk 00:15:58]} {[%emt 00:00:21]} Qb6
{[%clk 00:15:20]} {[%emt 00:03:02]} 15. Nxa4 {[%clk 00:15:16]} {[%emt
00:00:52]} Qc7 {[%clk 00:14:59]} {[%emt 00:00:31]} 16. Nc3 {[%clk 00:14:35]}
{[%emt 00:00:51]} b5 {[%clk 00:12:29]} {[%emt 00:02:40]} 17. Bf4 {[%clk
00:11:42]} {[%emt 00:03:00]} Qb6 {[%clk 00:09:59]} {[%emt 00:02:43]} 18. Ne5
{[%clk 00:10:35]} {[%emt 00:01:17]} Rad8 {[%clk 00:09:09]} {[%emt 00:00:58]} 19.
Re3 {[%clk 00:08:02]} {[%emt 00:02:45]} b4 {[%clk 00:08:18]} {[%emt 00:01:02]}
20. axb4 {[%clk 00:07:58]} {[%emt 00:00:13]} Bxb4 {[%clk 00:08:26]} {[%emt
00:00:03]} 21. Bg5 {[%clk 00:05:54]} {[%emt 00:02:14]} Nxe5 {[%clk 00:07:43]}
{[%emt 00:00:53]} 22. Rxe5 {[%clk 00:05:20]} {[%emt 00:00:43]} c5 {[%clk
00:05:12]} {[%emt 00:02:42]} 23. dxc5 {[%clk 00:03:07]} {[%emt 00:02:22]} Rxd2
{[%clk 00:05:20]} {[%emt 00:00:03]} 24. cxb6 {[%clk 00:03:15]} {[%emt
00:00:02]} Bxc3 {[%clk 00:05:06]} {[%emt 00:00:24]} 25. Bxd2 {[%clk 00:03:01]}
{[%emt 00:00:23]} Bxe5 {[%clk 00:05:14]} {[%emt 00:00:03]} 26. Ba5 {[%clk
00:02:38]} {[%emt 00:00:33]} h6 {[%clk 00:05:05]} {[%emt 00:00:19]} 27. b7
{[%clk 00:02:41]} {[%emt 00:00:06]} Rb8 {[%clk 00:04:09]} {[%emt 00:01:02]} 28.
Rd8+ {[%clk 00:02:12]} {[%emt 00:00:43]} Rxd8 {[%clk 00:04:14]} {[%emt
00:00:06]} 29. Bxd8 {[%clk 00:02:21]} {[%emt 00:00:02]} Be4 {[%clk 00:04:14]}
{[%emt 00:00:10]} 30. Bxf6 {[%clk 00:02:19]} {[%emt 00:00:12]} gxf6 {[%clk
00:04:22]} {[%emt 00:00:01]} 31. b8=Q+ {[%clk 00:02:02]} {[%emt 00:00:27]} Bxb8
{[%clk 00:04:30]} {[%emt 00:00:02]} 32. Kf1 {[%clk 00:02:06]} {[%emt 00:00:06]}
Kf8 {[%clk 00:04:33]} {[%emt 00:00:06]} 33. f3 {[%clk 00:02:14]} {[%emt
00:00:02]} Bc6 {[%clk 00:04:37]} {[%emt 00:00:04]} 34. Ke2 {[%clk 00:02:22]}
{[%emt 00:00:05]} Ke7 {[%clk 00:04:43]} {[%emt 00:00:04]} 35. Kd3 {[%clk
00:02:23]} {[%emt 00:00:08]} Kd6 {[%clk 00:04:01]} {[%emt 00:00:53]} 36. c4
{[%clk 00:02:22]} {[%emt 00:00:11]} Ba7 {[%clk 00:04:08]} {[%emt 00:00:02]} 37.
Bc2 {[%clk 00:02:00]} {[%emt 00:00:31]} Ke5 {[%clk 00:03:59]} {[%emt 00:00:21]}
38. Ke2 {[%clk 00:02:01]} {[%emt 00:00:07]} Kd4 {[%clk 00:04:07]} {[%emt
00:00:04]} 39. b3 {[%clk 00:02:05]} {[%emt 00:00:05]} Kc3 {[%clk 00:04:14]}
{[%emt 00:00:04]} 40. Bd1 {[%clk 00:02:03]} {[%emt 00:00:06]} Bd7 {[%clk
00:04:05]} {[%emt 00:00:26]} 41. Kf1 {[%clk 00:02:00]} {[%emt 00:00:11]} e5
{[%clk 00:04:04]} {[%emt 00:00:13]} 42. Ke2 {[%clk 00:02:00]} {[%emt 00:00:09]}
Bf5 {[%clk 00:04:12]} {[%emt 00:00:03]} 43. f4 {[%clk 00:01:42]} {[%emt
00:00:27]} e4 {[%clk 00:04:04]} {[%emt 00:00:19]} 44. Kf1 {[%clk 00:01:39]}
{[%emt 00:00:10]} e3 {[%clk 00:04:04]} {[%emt 00:00:11]} 45. g4 {[%clk
00:01:26]} {[%emt 00:00:24]} Be4 {[%clk 00:03:55]} {[%emt 00:00:19]} 46. Kg1
{[%clk 00:01:06]} {[%emt 00:00:29]} e2+ {[%clk 00:03:59]} {[%emt 00:00:08]} 0-1



[ePGN "0.1;DGT LiveChess/2.2.6"]

[Event "MČR družstev mladších žáků 2024"]
[Site "Harrachov, Czech Republic"]
[Date "2024.06.15"]
[Round "3.21"]
[White "Koutecky Vaclav"]
[Black "Krivka Lukas"]
[Result "1/2-1/2"]
[TimeControl "25+10"]
[WhiteFideId "23752602"]
[BlackFideId "23752092"]
[WhiteElo "1194"]
[BlackElo "1266"]

1. e4 {[%clk 00:25:19]} c6 {[%clk 00:25:11]} {[%emt 00:00:09]} 2. Nf3 {[%clk
00:25:27]} {[%emt 00:00:02]} d5 {[%clk 00:25:20]} {[%emt 00:00:02]} 3. Nc3
{[%clk 00:25:36]} Bg4 {[%clk 00:24:53]} {[%emt 00:00:37]} 4. h3 {[%emt
00:00:17]} Bxf3 {[%emt 00:00:08]} 5. Qxf3 {[%emt 00:00:03]} e6 {[%emt
00:00:06]} 6. g3 {[%emt 00:00:07]} Nf6 {[%emt 00:00:18]} 7. d3 {[%emt
00:00:24]} Bb4 {[%emt 00:01:17]} 8. Bg2 {[%emt 00:00:18]} d4 {[%emt 00:00:45]}
9. a3 {[%emt 00:00:16]} Qa5 {[%emt 00:03:34]} 10. axb4 {[%emt 00:08:32]} Qxa1
{[%emt 00:00:14]} 11. Ne2 {[%emt 00:00:08]} Qa4 {[%emt 00:00:54]} 12. c3 {[%emt
00:00:38]} dxc3 {[%emt 00:00:43]} 13. bxc3 {[%emt 00:00:08]} Nbd7 {[%emt
00:02:01]} 14. O-O {[%emt 00:00:23]} Ne5 {[%emt 00:00:49]} 15. Qe3 {[%emt
00:00:45]} Rd8 {[%emt 00:01:15]} 16. d4 {[%emt 00:00:30]} Nc4 {[%emt 00:02:41]}
17. Qd3 {[%emt 00:00:25]} Qb5 {[%emt 00:01:32]} 18. e5 {[%emt 00:02:52]} Nd5
{[%emt 00:01:14]} 19. Bg5 {[%emt 00:01:06]} Rd7 {[%emt 00:00:28]} 20. Rc1
{[%emt 00:02:10]} h6 {[%emt 00:01:17]} 21. Bf4 {[%emt 00:00:53]} O-O {[%emt
00:01:16]} 22. Qf3 {[%emt 00:01:39]} g5 {[%emt 00:05:28]} 23. Qg4 {[%emt
00:02:25]} Kh8 {[%emt 00:02:26]} 24. Bxg5 {[%emt 00:01:00]} hxg5 {[%emt
00:00:12]} 25. Qh5+ {[%emt 00:00:03]} Kg7 {[%emt 00:00:18]} 26. Qxg5+ {[%emt
00:00:07]} Kh8 {[%emt 00:00:10]} 27. Qh4+ {[%emt 00:00:07]} Kg8 {[%emt
00:00:08]} 28. Qg4+ {[%emt 00:00:07]} Kh8 {[%emt 00:00:11]} 29. Qh4+ {[%emt
00:00:05]} Kg8 {[%emt 00:00:08]} 30. Qg5+ {[%emt 00:00:19]} Kh8 {[%emt
00:00:10]} 31. Qh6+ {[%emt 00:00:15]} Kg8 {[%emt 00:00:12]} 32. Qg5+ {[%clk
00:03:14]} {[%emt 00:00:21]} Kh8 {[%clk 00:00:25]} {[%emt 00:00:12]} 33. Qh5+
{[%clk 00:03:22]} {[%emt 00:00:02]} Kg8 {[%clk 00:00:28]} {[%emt 00:00:07]} 34.
Qg5+ {[%clk 00:03:28]} {[%emt 00:00:03]} Kh8 {[%clk 00:00:32]} {[%emt
00:00:07]} 1/2-1/2



[ePGN "0.1;DGT LiveChess/2.2.6"]

[Event "MČR družstev mladších žáků 2024"]
[Site "Harrachov, Czech Republic"]
[Date "2024.06.15"]
[Round "3.22"]
[White "Strihavka Petr"]
[Black "Koutecka Magdalena"]
[Result "1-0"]
[TimeControl "25+10"]
[WhiteFideId "23760702"]
[BlackFideId "23752599"]
[WhiteElo "1251"]
[BlackElo "1085"]

1. e4 {[%clk 00:25:19]} d5 {[%clk 00:25:16]} {[%emt 00:00:05]} 2. exd5 {[%clk
00:25:27]} {[%emt 00:00:02]} Nf6 {[%clk 00:25:24]} {[%emt 00:00:02]} 3. Nf3
{[%clk 00:25:19]} {[%emt 00:00:17]} Bg4 {[%clk 00:24:10]} {[%emt 00:01:24]} 4.
Be2 {[%clk 00:24:48]} {[%emt 00:00:42]} Nxd5 {[%clk 00:23:03]} {[%emt
00:01:16]} 5. O-O {[%clk 00:24:24]} {[%emt 00:00:35]} e6 {[%clk 00:22:36]}
{[%emt 00:00:36]} 6. Ne5 {[%clk 00:23:22]} {[%emt 00:01:12]} Bxe2 {[%clk
00:21:47]} {[%emt 00:00:59]} 7. Qxe2 {[%clk 00:23:28]} {[%emt 00:00:04]} Bd6
{[%clk 00:21:48]} {[%emt 00:00:09]} 8. b3 {[%clk 00:22:31]} {[%emt 00:01:07]}
Bxe5 {[%clk 00:21:05]} {[%emt 00:00:53]} 9. Qxe5 {[%clk 00:22:36]} {[%emt
00:00:05]} Qf6 {[%clk 00:21:01]} {[%emt 00:00:12]} 10. Bb2 {[%clk 00:21:57]}
{[%emt 00:00:51]} Qxe5 {[%clk 00:20:08]} {[%emt 00:01:03]} 11. Bxe5 {[%clk
00:22:04]} {[%emt 00:00:03]} O-O {[%clk 00:19:59]} {[%emt 00:00:19]} 12. Re1
{[%clk 00:21:41]} {[%emt 00:00:32]} Nc6 {[%clk 00:19:25]} {[%emt 00:00:44]} 13.
Bg3 {[%clk 00:21:26]} {[%emt 00:00:26]} Rad8 {[%clk 00:17:28]} {[%emt
00:02:07]} 14. Na3 {[%clk 00:17:23]} {[%emt 00:04:13]} a6 {[%clk 00:15:17]}
{[%emt 00:02:20]} 15. Nc4 {[%clk 00:15:56]} {[%emt 00:01:38]} Rd7 {[%clk
00:14:26]} {[%emt 00:01:01]} 16. c3 {[%clk 00:15:22]} {[%emt 00:00:45]} Rfd8
{[%clk 00:11:00]} {[%emt 00:03:35]} 17. Re2 {[%clk 00:13:54]} {[%emt 00:01:38]}
Nce7 {[%clk 00:09:15]} {[%emt 00:01:55]} 18. Ne5 {[%clk 00:12:50]} {[%emt
00:01:14]} Rd6 {[%clk 00:08:40]} {[%emt 00:00:45]} 19. Nc4 {[%clk 00:11:20]}
{[%emt 00:01:40]} R6d7 {[%clk 00:07:20]} {[%emt 00:01:26]} 20. Na5 {[%clk
00:11:00]} {[%emt 00:00:32]} c6 {[%clk 00:06:42]} {[%emt 00:00:50]} 21. Nc4
{[%clk 00:10:33]} {[%emt 00:00:37]} Ng6 {[%clk 00:06:34]} {[%emt 00:00:18]} 22.
Rae1 {[%clk 00:09:40]} {[%emt 00:01:03]} Ngf4 {[%clk 00:06:05]} {[%emt
00:00:40]} 23. Bxf4 {[%clk 00:08:22]} {[%emt 00:01:28]} Nxf4 {[%clk 00:06:13]}
{[%emt 00:00:01]} 24. Re3 {[%clk 00:08:20]} {[%emt 00:00:11]} b5 {[%emt
00:00:40]} 25. Ne5 {[%clk 00:07:39]} {[%emt 00:00:50]} Rxd2 {[%clk 00:05:29]}
{[%emt 00:00:27]} 26. Nxc6 {[%clk 00:07:41]} {[%emt 00:00:07]} R8d3 {[%clk
00:05:22]} {[%emt 00:00:14]} 27. g3 {[%clk 00:05:00]} {[%emt 00:02:55]} Rxe3
{[%clk 00:04:08]} {[%emt 00:01:23]} 28. fxe3 {[%clk 00:05:06]} {[%emt
00:00:04]} Nh3+ {[%clk 00:03:16]} {[%emt 00:01:01]} 29. Kh1 {[%clk 00:05:05]}
{[%emt 00:00:09]} Rxa2 {[%emt 00:00:14]} 30. Nb4 {[%clk 00:03:42]} {[%emt
00:01:29]} Rb2 {[%clk 00:02:22]} {[%emt 00:01:04]} 31. Nxa6 {[%clk 00:02:49]}
{[%emt 00:01:06]} Rxb3 {[%clk 00:02:21]} {[%emt 00:00:11]} 32. Rc1 {[%clk
00:02:37]} {[%emt 00:00:21]} Nf2+ {[%clk 00:02:22]} {[%emt 00:00:10]} 33. Kg2
{[%clk 00:01:33]} {[%emt 00:01:14]} Ne4 {[%clk 00:02:27]} {[%emt 00:00:04]} 34.
c4 {[%clk 00:01:33]} {[%emt 00:00:10]} bxc4 {[%clk 00:02:12]} {[%emt 00:00:25]}
35. Rxc4 {[%clk 00:01:39]} {[%emt 00:00:04]} Rxe3 {[%clk 00:02:20]} {[%emt
00:00:03]} 36. Rc8# {[%clk 00:01:35]} {[%emt 00:00:03]} 1-0



[ePGN "0.1;DGT LiveChess/2.2.6"]

[Event "MČR družstev mladších žáků 2024"]
[Site "Harrachov, Czech Republic"]
[Date "2024.06.15"]
[Round "3.23"]
[White "Strazhnyk Yevhen"]
[Black "Bejvl Antonin"]
[Result "1-0"]
[TimeControl "25+10"]
[WhiteFideId "23771305"]
[BlackFideId "23770953"]
[WhiteElo "1150"]
[BlackElo "1172"]

1. d4 {[%clk 00:25:19]} e5 {[%clk 00:25:02]} {[%emt 00:00:18]} 2. dxe5 {[%clk
00:25:24]} {[%emt 00:00:05]} d6 {[%clk 00:25:04]} {[%emt 00:00:07]} 3. Nf3
{[%clk 00:24:57]} {[%emt 00:00:37]} Bg4 {[%clk 00:24:08]} {[%emt 00:01:06]} 4.
exd6 {[%clk 00:24:47]} {[%emt 00:00:21]} Bxd6 {[%clk 00:24:13]} {[%emt
00:00:05]} 5. e3 {[%clk 00:24:25]} {[%emt 00:00:32]} Nc6 {[%clk 00:23:41]}
{[%emt 00:00:41]} 6. Be2 {[%clk 00:23:57]} {[%emt 00:00:38]} Qe7 {[%clk
00:22:06]} {[%emt 00:01:45]} 7. h3 {[%clk 00:22:10]} {[%emt 00:01:57]} Bh5
{[%clk 00:21:54]} {[%emt 00:00:22]} 8. Nc3 {[%clk 00:21:23]} {[%emt 00:00:58]}
Nf6 {[%clk 00:20:50]} {[%emt 00:01:14]} 9. Nd5 {[%clk 00:20:51]} {[%emt
00:00:42]} Nxd5 {[%clk 00:18:47]} {[%emt 00:02:13]} 10. Qxd5 {[%clk 00:20:47]}
{[%emt 00:00:13]} Bg6 {[%clk 00:17:21]} {[%emt 00:01:37]} 11. Bb5 {[%clk
00:20:13]} {[%emt 00:00:44]} Be4 {[%clk 00:13:57]} {[%emt 00:03:32]} 12. Qc4
{[%clk 00:18:58]} {[%emt 00:01:14]} O-O-O {[%clk 00:12:27]} {[%emt 00:01:52]}
13. Bxc6 {[%clk 00:16:18]} {[%emt 00:02:51]} Bxc6 {[%clk 00:12:30]} {[%emt
00:00:06]} 14. Qg4+ {[%clk 00:15:30]} {[%emt 00:00:54]} Qd7 {[%clk 00:08:16]}
{[%emt 00:04:29]} 15. Qxd7+ {[%clk 00:14:00]} {[%emt 00:01:40]} Kxd7 {[%clk
00:08:07]} {[%emt 00:00:19]} 16. Bd2 {[%clk 00:13:24]} {[%emt 00:00:45]} f6
{[%clk 00:07:21]} {[%emt 00:00:56]} 17. O-O-O {[%clk 00:12:39]} {[%emt
00:00:55]} Ke7 {[%clk 00:06:18]} {[%emt 00:01:13]} 18. h4 {[%clk 00:12:04]}
{[%emt 00:00:44]} Kf7 {[%clk 00:04:25]} {[%emt 00:02:05]} 19. Rh3 {[%clk
00:10:35]} {[%emt 00:01:27]} Rhe8 {[%clk 00:04:20]} {[%emt 00:00:26]} 20. h5
{[%clk 00:09:50]} {[%emt 00:00:54]} Re7 {[%clk 00:03:01]} {[%emt 00:01:30]} 21.
a3 {[%clk 00:08:54]} {[%emt 00:01:07]} Red7 {[%clk 00:03:02]} {[%emt 00:00:09]}
22. g4 {[%clk 00:07:05]} {[%emt 00:01:56]} h6 {[%clk 00:02:43]} {[%emt
00:00:32]} 23. Nd4 {[%clk 00:06:34]} {[%emt 00:00:27]} Bd5 {[%clk 00:02:25]}
{[%emt 00:00:42]} 24. Nb5 {[%clk 00:05:22]} {[%emt 00:01:16]} Bc5 {[%clk
00:02:09]} {[%emt 00:00:31]} 25. Nd4 {[%clk 00:04:31]} {[%emt 00:00:55]} Bxd4
{[%clk 00:02:01]} {[%emt 00:00:25]} 26. exd4 {[%clk 00:04:26]} {[%emt
00:00:13]} Bc6 {[%clk 00:02:07]} {[%emt 00:00:06]} 27. Be3 {[%clk 00:04:14]}
{[%emt 00:00:18]} Bb5 {[%clk 00:02:06]} {[%emt 00:00:15]} 28. b4 {[%clk
00:04:10]} {[%emt 00:00:13]} b6 {[%clk 00:02:10]} {[%emt 00:00:06]} 29. Kb2
{[%clk 00:03:13]} {[%emt 00:01:07]} c5 {[%clk 00:02:19]} {[%emt 00:00:02]} 30.
c3 {[%clk 00:02:36]} {[%emt 00:00:47]} Ba4 {[%clk 00:02:07]} {[%emt 00:00:22]}
31. Rd2 {[%clk 00:02:34]} {[%emt 00:00:10]} Bb5 {[%clk 00:01:56]} {[%emt
00:00:23]} 32. Kb3 {[%clk 00:02:13]} {[%emt 00:00:30]} c4+ {[%clk 00:02:01]}
{[%emt 00:00:06]} 33. Kb2 {[%clk 00:02:15]} {[%emt 00:00:07]} Rd5 {[%clk
00:02:06]} {[%emt 00:00:06]} 34. Rg3 {[%clk 00:01:48]} {[%emt 00:00:33]} Rg8
{[%clk 00:01:38]} {[%emt 00:00:41]} 35. Rd1 {[%clk 00:01:17]} {[%emt 00:00:42]}
Ba4 {[%clk 00:01:41]} {[%emt 00:00:07]} 36. Rdg1 {[%clk 00:01:25]} {[%emt
00:00:02]} Bd7 {[%clk 00:01:42]} {[%emt 00:00:09]} 37. Kc1 {[%clk 00:00:51]}
{[%emt 00:00:42]} b5 {[%clk 00:01:37]} {[%emt 00:00:17]} 38. Kd2 {[%clk
00:00:56]} {[%emt 00:00:04]} Ke6 {[%clk 00:01:20]} {[%emt 00:00:27]} 39. Ke2
{[%clk 00:01:02]} {[%emt 00:00:05]} f5 {[%clk 00:01:21]} {[%emt 00:00:09]} 40.
g5 {[%clk 00:01:01]} {[%emt 00:00:11]} Be8 {[%clk 00:01:20]} {[%emt 00:00:11]}
41. gxh6 {[%clk 00:01:05]} {[%emt 00:00:06]} Bxh5+ {[%emt 00:00:04]} 42. Kd2
{[%clk 00:01:13]} g6 {[%clk 00:01:23]} {[%emt 00:00:15]} 43. Ke1 {[%clk
00:01:14]} {[%emt 00:00:08]} Rf8 {[%clk 00:01:10]} {[%emt 00:00:21]} 44. Bd2
{[%clk 00:01:10]} {[%emt 00:00:16]} f4 {[%clk 00:01:16]} {[%emt 00:00:05]} 45.
Rg5 {[%clk 00:01:13]} {[%emt 00:00:07]} Rxg5 {[%clk 00:01:20]} {[%emt
00:00:06]} 46. Rxg5 {[%clk 00:01:21]} {[%emt 00:00:01]} Rf7 {[%clk 00:01:18]}
{[%emt 00:00:13]} 47. Rxb5 {[%clk 00:01:26]} {[%emt 00:00:05]} g5 {[%clk
00:01:14]} {[%emt 00:00:14]} 48. Rxg5 {[%clk 00:01:31]} {[%emt 00:00:05]} Bf3
{[%clk 00:00:49]} {[%emt 00:00:34]} 49. Rc5 {[%clk 00:01:22]} {[%emt 00:00:16]}
Bd5 {[%clk 00:00:58]} {[%emt 00:00:04]} 50. Kf1 {[%clk 00:01:22]} {[%emt
00:00:11]} f3 {[%clk 00:00:52]} {[%emt 00:00:16]} 51. Kg1 {[%clk 00:01:20]}
{[%emt 00:00:12]} Rf8 {[%clk 00:00:36]} {[%emt 00:00:25]} 52. Kh2 {[%clk
00:01:25]} {[%emt 00:00:05]} Rg8 {[%clk 00:00:29]} {[%emt 00:00:18]} 53. Kh3
{[%emt 00:00:04]} Be4 {[%emt 00:00:17]} 54. Re5+ {[%clk 00:01:01]} {[%emt
00:00:13]} Kf6 {[%clk 00:00:25]} {[%emt 00:00:13]} 55. Rxe4 {[%clk 00:01:08]}
{[%emt 00:00:04]} Kg6 {[%clk 00:00:19]} {[%emt 00:00:15]} 56. Rg4+ {[%clk
00:01:02]} {[%emt 00:00:17]} Kh7 {[%clk 00:00:27]} {[%emt 00:00:02]} 57. Rxg8
{[%clk 00:01:10]} {[%emt 00:00:02]} Kxg8 {[%clk 00:00:35]} {[%emt 00:00:01]} 58.
Kg3 {[%clk 00:01:19]} Kh7 {[%clk 00:00:42]} {[%emt 00:00:03]} 59. Kxf3 {[%clk
00:01:28]} {[%emt 00:00:02]} a6 {[%clk 00:00:50]} {[%emt 00:00:02]} 60. d5
{[%clk 00:01:36]} {[%emt 00:00:02]} a5 {[%clk 00:00:57]} {[%emt 00:00:03]} 61.
d6 {[%clk 00:01:42]} {[%emt 00:00:03]} axb4 {[%clk 00:01:04]} {[%emt 00:00:04]}
62. axb4 {[%emt 00:00:07]} Kg6 {[%clk 00:00:57]} {[%emt 00:00:11]} 63. d7
{[%emt 00:00:03]} Kf7 {[%clk 00:01:04]} {[%emt 00:00:02]} 64. d8=Q {[%clk
00:01:59]} {[%emt 00:00:09]} Ke6 {[%clk 00:01:12]} {[%emt 00:00:02]} 65. Ke4
{[%clk 00:02:02]} {[%emt 00:00:08]} Kf7 {[%clk 00:01:21]} {[%emt 00:00:01]} 66.
Qd7+ {[%clk 00:02:02]} {[%emt 00:00:10]} Kf6 {[%clk 00:01:27]} {[%emt
00:00:03]} 67. Qf5+ {[%clk 00:02:09]} {[%emt 00:00:03]} Ke7 {[%clk 00:01:35]}
{[%emt 00:00:03]} 68. Ke5 {[%clk 00:02:17]} {[%emt 00:00:02]} Kd8 {[%clk
00:01:42]} {[%emt 00:00:03]} 69. Kd6 {[%clk 00:02:13]} {[%emt 00:00:14]} Ke8
{[%clk 00:01:50]} {[%emt 00:00:02]} 70. Qd7+ {[%clk 00:02:19]} {[%emt
00:00:04]} Kf8 {[%clk 00:01:59]} {[%emt 00:00:02]} 71. Ke6 {[%clk 00:02:27]}
{[%emt 00:00:01]} Kg8 {[%clk 00:02:08]} 72. Kf6 {[%clk 00:02:35]} {[%emt
00:00:02]} Kh8 {[%clk 00:02:14]} {[%emt 00:00:03]} 73. Qg7# {[%clk 00:02:33]}
{[%emt 00:00:02]} 1-0



[ePGN "0.1;DGT LiveChess/2.2.6"]

[Event "MČR družstev mladších žáků 2024"]
[Site "Harrachov, Czech Republic"]
[Date "2024.06.15"]
[Round "3.25"]
[White "Cerny Rodan"]
[Black "Padivy Jan"]
[Result "0-1"]
[TimeControl "25+10"]
[WhiteFideId "23746165"]
[BlackFideId "23752904"]
[WhiteElo "1299"]
[BlackElo "1500"]

1. e4 {[%clk 00:25:19]} c5 {[%clk 00:25:19]} {[%emt 00:00:01]} 2. Nf3 {[%clk
00:25:28]} {[%emt 00:00:02]} Nc6 {[%clk 00:25:27]} {[%emt 00:00:01]} 3. d4
{[%clk 00:25:36]} {[%emt 00:00:02]} cxd4 {[%clk 00:25:36]} {[%emt 00:00:02]} 4.
Nxd4 {[%clk 00:25:44]} {[%emt 00:00:02]} e6 {[%clk 00:25:44]} {[%emt 00:00:01]}
5. Be3 {[%clk 00:25:10]} {[%emt 00:00:44]} a6 {[%clk 00:25:45]} {[%emt
00:00:09]} 6. a4 {[%clk 00:25:18]} {[%emt 00:00:03]} Nf6 {[%clk 00:25:43]}
{[%emt 00:00:11]} 7. Nc3 {[%clk 00:25:02]} {[%emt 00:00:25]} Be7 {[%clk
00:25:27]} {[%emt 00:00:27]} 8. g3 {[%clk 00:25:00]} {[%emt 00:00:12]} O-O
{[%clk 00:25:00]} {[%emt 00:00:37]} 9. Bg2 {[%clk 00:25:06]} {[%emt 00:00:04]}
d5 {[%clk 00:21:36]} {[%emt 00:03:34]} 10. e5 {[%clk 00:23:19]} {[%emt
00:01:57]} Nxe5 {[%clk 00:20:16]} {[%emt 00:01:30]} 11. O-O {[%clk 00:22:14]}
{[%emt 00:01:15]} Neg4 {[%clk 00:11:44]} {[%emt 00:08:36]} 12. Bg5 {[%clk
00:19:54]} {[%emt 00:02:36]} Qb6 {[%clk 00:09:15]} {[%emt 00:02:32]} 13. Nb3
{[%clk 00:17:32]} {[%emt 00:02:39]} Ne5 {[%clk 00:07:09]} {[%emt 00:02:14]} 14.
a5 {[%clk 00:17:07]} {[%emt 00:00:38]} Qc6 {[%clk 00:06:04]} {[%emt 00:01:07]}
15. Nd4 {[%clk 00:16:39]} {[%emt 00:00:45]} Qd7 {[%clk 00:04:45]} {[%emt
00:01:20]} 16. Na4 {[%clk 00:16:16]} {[%emt 00:00:43]} Qc7 {[%clk 00:00:13]}
{[%emt 00:04:42]} 17. Nb6 {[%clk 00:14:32]} {[%emt 00:01:54]} Rb8 {[%clk
00:00:15]} {[%emt 00:00:08]} 18. Bf4 {[%clk 00:13:10]} {[%emt 00:01:32]} Bd6
{[%clk 00:00:24]} {[%emt 00:00:01]} 19. Re1 {[%clk 00:10:13]} {[%emt 00:03:07]}
Nc4 {[%clk 00:00:19]} {[%emt 00:00:15]} 20. Bxd6 {[%clk 00:09:57]} {[%emt
00:00:26]} Nxd6 {[%clk 00:00:26]} {[%emt 00:00:03]} 21. Nb3 {[%clk 00:07:41]}
{[%emt 00:02:26]} Nc4 {[%clk 00:00:23]} {[%emt 00:00:13]} 22. Qd4 {[%clk
00:07:06]} {[%emt 00:00:44]} Nxb6 {[%clk 00:00:26]} {[%emt 00:00:08]} 23. axb6
{[%clk 00:07:04]} {[%emt 00:00:12]} Qxc2 {[%clk 00:00:23]} {[%emt 00:00:13]} 24.
Nc5 {[%clk 00:07:00]} {[%emt 00:00:13]} Qc4 {[%clk 00:00:16]} {[%emt 00:00:17]}
25. Qe5 {[%clk 00:06:01]} {[%emt 00:01:09]} Nd7 {[%clk 00:00:15]} {[%emt
00:00:12]} 26. Nxd7 {[%clk 00:05:08]} {[%emt 00:01:03]} Bxd7 {[%clk 00:00:24]}
27. Bf1 {[%clk 00:04:23]} {[%emt 00:00:56]} Qc6 {[%clk 00:00:22]} {[%emt
00:00:11]} 28. Rec1 {[%clk 00:04:21]} {[%emt 00:00:12]} Qxb6 {[%clk 00:00:20]}
{[%emt 00:00:12]} 29. Rc7 {[%clk 00:03:58]} {[%emt 00:00:34]} Bc6 {[%clk
00:00:29]} 30. Bd3 {[%clk 00:02:57]} {[%emt 00:01:11]} Rbe8 {[%clk 00:00:18]}
{[%emt 00:00:21]} 31. Rc1 {[%clk 00:01:52]} {[%emt 00:01:15]} f6 {[%clk
00:00:13]} {[%emt 00:00:14]} 32. Bxh7+ {[%clk 00:00:57]} {[%emt 00:01:05]} Kxh7
{[%clk 00:00:13]} {[%emt 00:00:10]} 33. Qh5+ {[%clk 00:00:47]} {[%emt
00:00:20]} Kg8 {[%clk 00:00:21]} {[%emt 00:00:02]} 34. Rxg7+ {[%clk 00:00:19]}
{[%emt 00:00:39]} Kxg7 {[%clk 00:00:30]} {[%emt 00:00:01]} 35. g4 {[%clk
00:00:26]} {[%emt 00:00:02]} Rh8 {[%clk 00:00:32]} {[%emt 00:00:08]} 36. Qxe8
{[%clk 00:00:12]} {[%emt 00:00:24]} Rxe8 {[%clk 00:00:41]} {[%emt 00:00:01]} 37.
Rc3 {[%clk 00:00:12]} {[%emt 00:00:10]} Qxb2 {[%clk 00:00:45]} {[%emt
00:00:06]} 38. Rg3 {[%clk 00:00:20]} {[%emt 00:00:02]} Rh8 {[%clk 00:00:53]}
{[%emt 00:00:02]} 39. h3 {[%clk 00:00:25]} {[%emt 00:00:05]} d4 {[%clk
00:01:00]} {[%emt 00:00:03]} 40. Kf1 {[%clk 00:00:14]} {[%emt 00:00:21]} Qc1+
{[%clk 00:01:02]} {[%emt 00:00:08]} 41. Ke2 {[%clk 00:00:18]} {[%emt 00:00:06]}
Bb5+ {[%clk 00:01:10]} {[%emt 00:00:03]} 42. Kf3 {[%clk 00:00:22]} {[%emt
00:00:05]} Qh1+ {[%clk 00:01:11]} {[%emt 00:00:09]} 43. Kf4 {[%clk 00:00:23]}
{[%emt 00:00:09]} e5+ {[%clk 00:01:18]} {[%emt 00:00:03]} 44. Kf5 {[%clk
00:00:31]} {[%emt 00:00:02]} Bd7# {[%clk 00:01:26]} {[%emt 00:00:03]} 0-1



[ePGN "0.1;DGT LiveChess/2.2.6"]